bitfinex-derivatives/quotes_BTCF0:USTF0_20250926
["timestamp","ask_amount","ask_price","bid_price","bid_amount"]
[1758858885931,0.86464,109640.0,109630.0,0.4869998]
[1758858886432,0.86464,109640.0,109630.0,1.18369323]
[1758858886729,0.84212,109640.0,109630.0,1.18369323]
[1758858887320,0.84212,109640.0,109630.0,1.27490497]
[1758858888828,0.84212,109640.0,109630.0,1.29679139]
[1758858889126,0.84212,109640.0,109630.0,1.27490497]
[1758858889827,0.86464,109640.0,109630.0,0.97821154]
[1758858890028,0.86464,109640.0,109630.0,1.27490497]
[1758858890327,0.86464,109640.0,109630.0,0.97821154]
[1758858890527,0.9557915,109640.0,109630.0,0.97821154]
[1758858891927,0.86464,109640.0,109630.0,0.97821154]
[1758858893418,0.86464,109640.0,109630.0,1.27490497]
[1758858894425,0.9557915,109640.0,109630.0,1.27490497]
[1758858894733,0.86464,109640.0,109630.0,1.27490497]
[1758858896631,0.9557915,109640.0,109630.0,1.27490497]
[1758858897634,0.9557915,109640.0,109630.0,0.97821154]
[1758858899038,0.86464,109640.0,109630.0,0.97821154]
[1758858899738,0.85964,109640.0,109630.0,1.27590497]
[1758858899926,0.85864,109640.0,109630.0,1.27790497]
[1758858900435,0.85864,109640.0,109630.0,1.28390497]
[1758858900834,0.85864,109640.0,109630.0,1.28190497]
[1758858901034,0.85864,109640.0,109630.0,1.28290497]
[1758858901438,0.9497915,109640.0,109630.0,1.28290497]
[1758858901644,0.9497915,109640.0,109630.0,0.98621154]
[1758858902139,0.9497915,109640.0,109630.0,0.97921154]
[1758858902437,1.24648493,109640.0,109630.0,0.98021154]
[1758858902737,1.24648493,109640.0,109630.0,0.97821154]
[1758858903032,0.9497915,109640.0,109630.0,0.98521154]
[1758858903232,0.85864,109640.0,109630.0,0.98521154]
[1758858903428,0.85864,109640.0,109630.0,0.98021154]
[1758858903634,0.85964,109640.0,109630.0,0.98021154]
[1758858903835,0.85964,109640.0,109630.0,0.97821154]
[1758858904744,0.85964,109640.0,109630.0,0.98021154]
[1758858905431,0.85864,109640.0,109630.0,0.98521154]
[1758858905835,0.9497915,109640.0,109630.0,0.98521154]
[1758858906235,1.24648493,109640.0,109630.0,0.98521154]
[1758858907339,1.24748493,109640.0,109630.0,0.98021154]
[1758858907541,1.24748493,109640.0,109630.0,0.97821154]
[1758858909143,1.24748493,109640.0,109630.0,0.88705174]
[1758858909338,0.0911599,109630.0,109620.0,0.37395]
[1758858909543,0.42388333,109630.0,109620.0,0.39523]
[1758858909835,0.41053333,109630.0,109620.0,0.48644174]
[1758858910338,0.41053333,109630.0,109620.0,0.57960994]
[1758858912939,0.41053333,109630.0,109620.0,0.57760994]
[1758858913342,0.41053333,109630.0,109620.0,0.58260994]
[1758858913736,0.41053333,109630.0,109620.0,0.57760994]
[1758858913946,0.41153333,109630.0,109620.0,0.57760994]
[1758858918346,0.1148399,109630.0,109620.0,0.57760994]
[1758858918647,0.41153333,109630.0,109620.0,0.57760994]
[1758858920649,0.1148399,109630.0,109620.0,0.57760994]
[1758858920851,0.41153333,109630.0,109620.0,0.57760994]
[1758858921644,0.001,109630.0,109620.0,0.87430337]
[1758858921946,0.001,109630.0,109620.0,1.35641656]
[1758858923545,0.85704,109640.0,109630.0,0.1042698]
[1758858923851,0.85704,109640.0,109630.0,0.78304323]
[1758858924152,0.85704,109640.0,109630.0,0.87426329]
[1758858924555,0.85704,109640.0,109630.0,0.57756986]
[1758858924851,0.85804,109640.0,109630.0,0.57756986]
[1758858925745,0.9491915,109640.0,109630.0,0.57756986]
[1758858926852,1.25923493,109640.0,109630.0,0.47330006]
[1758858927154,1.25923493,109640.0,109630.0,0.38208]
[1758858927655,1.24588493,109640.0,109630.0,0.39486]
[1758858929259,1.25923493,109640.0,109630.0,0.38208]
[1758858929452,1.65923493,109640.0,109630.0,0.38208]
[1758858930150,1.65923493,109640.0,109630.0,0.4732399]
[1758858930353,0.85804,109640.0,109630.0,0.4860199]
[1758858932458,0.9491915,109640.0,109630.0,0.4860199]
[1758858932660,1.24572529,109640.0,109630.0,0.78255369]
[1758858935864,1.24572529,109640.0,109630.0,0.4860199]
[1758858936059,1.24572529,109640.0,109630.0,0.78255369]
[1758858937262,1.15457379,109640.0,109630.0,0.78255369]
[1758858938160,1.15457379,109640.0,109630.0,0.87376543]
[1758858939963,1.15457379,109640.0,109630.0,0.57723164]
[1758858940164,1.15457379,109640.0,109630.0,0.87376543]
[1758858943658,1.45110758,109640.0,109630.0,0.57723164]
[1758858943971,1.45536758,109640.0,109630.0,0.56445164]
[1758858944972,0.85804,109640.0,109630.0,0.87376543]
[1758858945168,1.15457379,109640.0,109630.0,0.87376543]
[1758858950279,0.85804,109640.0,109630.0,0.87376543]
[1758858950470,1.15457379,109640.0,109630.0,0.87376543]
[1758858952281,1.15457379,109640.0,109630.0,0.57723164]
[1758858952481,1.15457379,109640.0,109630.0,0.87376543]
[1758858953477,1.15457379,109640.0,109630.0,0.95587862]
[1758858954283,1.15457379,109640.0,109630.0,0.65934483]
[1758858954785,1.15457379,109640.0,109630.0,0.95587862]
[1758858956280,1.15457379,109640.0,109630.0,0.87376543]
[1758858956683,1.24572529,109640.0,109630.0,0.87376543]
[1758858957785,1.24572529,109640.0,109630.0,0.87576543]
[1758858958687,1.15457379,109640.0,109630.0,0.87576543]
[1758858959281,1.15457379,109640.0,109630.0,0.95787862]
[1758858959587,1.15457379,109640.0,109630.0,0.87376543]
[1758858959889,1.15357379,109640.0,109630.0,0.87376543]
[1758858960083,1.15357379,109640.0,109630.0,0.87876543]
[1758858960482,1.15357379,109640.0,109630.0,0.96287862]
[1758858960786,0.85704,109640.0,109630.0,0.96287862]
[1758858961587,1.15357379,109640.0,109630.0,0.96287862]
[1758858965487,0.85704,109640.0,109630.0,0.96287862]
[1758858965690,1.15357379,109640.0,109630.0,0.96287862]
[1758858965985,0.85704,109640.0,109630.0,0.96287862]
[1758858966185,0.83436,109640.0,109630.0,1.43452401]
[1758858968189,0.83436,109640.0,109630.0,1.35241082]
[1758858969291,0.41078299,109660.0,109650.0,0.1268032]
[1758858969484,1.24450299,109660.0,109650.0,0.4876032]
[1758858970592,1.24450299,109660.0,109650.0,0.39646]
[1758858971593,0.9479692,109660.0,109650.0,0.39646]
[1758858971885,1.24550299,109660.0,109650.0,0.69299379]
[1758858972191,1.263377,109660.0,109650.0,0.39646]
[1758858972485,0.9489692,109660.0,109650.0,0.39646]
[1758858972679,1.24550299,109660.0,109650.0,0.39646]
[1758858972884,1.25250299,109660.0,109650.0,0.4876032]
[1758858974491,0.9559692,109660.0,109650.0,0.4876032]
[1758858974696,1.54903678,109660.0,109650.0,0.4876032]
[1758858975694,0.9687692,109660.0,109650.0,0.4876032]
[1758858975991,1.26530299,109660.0,109650.0,0.4876032]
[1758858976992,0.9687692,109660.0,109650.0,0.4876032]
[1758858977192,1.26530299,109660.0,109650.0,0.4876032]
[1758858979693,1.25250299,109660.0,109650.0,0.78413699]
[1758858981296,1.25150299,109660.0,109650.0,0.78413699]
[1758858981791,1.24550299,109660.0,109650.0,0.78413699]
[1758858984300,1.24550299,109660.0,109650.0,0.4876032]
[1758858984301,1.25857299,109660.0,109650.0,0.4876032]
[1758858984496,1.25857299,109660.0,109650.0,0.78413699]
[1758858984902,0.9489692,109660.0,109650.0,0.78413699]
[1758858985098,1.24550299,109660.0,109650.0,0.78413699]
[1758858987502,1.24550299,109660.0,109650.0,1.02413699]
[1758858990406,0.9489692,109660.0,109650.0,1.02413699]
[1758858990707,1.24550299,109660.0,109650.0,1.02413699]
[1758858993611,1.24550299,109660.0,109650.0,0.63646]
[1758858993805,1.24550299,109660.0,109650.0,0.93299379]
[1758858994709,1.24541144,109660.0,109650.0,0.63646]
[1758858995699,1.65848144,109660.0,109650.0,0.26198]
[1758858995903,0.1137515,109640.0,109630.0,0.56943299]
[1758858996102,0.9473115,109640.0,109630.0,0.4873198]
[1758858996306,0.9473115,109640.0,109630.0,0.81851491]
[1758858996503,0.85616,109640.0,109630.0,1.11495715]
[1758858996701,0.0226,109650.0,109640.0,0.126651]
[1758858996901,0.0226,109650.0,109640.0,0.487451]
[1758858996902,0.85616,109650.0,109640.0,0.487451]
[1758858997114,0.9473032,109650.0,109640.0,0.69274224]
[1758858997409,0.9473032,109650.0,109640.0,0.78389374]
[1758858998110,0.9473032,109650.0,109640.0,0.78589374]
[1758858998612,0.9473032,109650.0,109640.0,0.4894515]
[1758858999712,0.9483032,109650.0,109640.0,0.4894515]
[1758859000711,0.9483032,109650.0,109640.0,0.4874515]
[1758859000912,0.9483032,109650.0,109640.0,0.78389374]
[1758859002414,0.9483032,109650.0,109640.0,1.02389374]
[1758859003212,0.9483032,109650.0,109640.0,0.7274515]
[1758859004113,0.85716,109650.0,109640.0,0.7274515]
[1758859004614,0.85716,109650.0,109640.0,1.02389374]
[1758859008914,0.9483032,109650.0,109640.0,1.02389374]
[1758859010104,0.85716,109650.0,109640.0,1.02389374]
[1758859013315,0.9483032,109650.0,109640.0,1.02389374]
[1758859014912,0.9483032,109650.0,109640.0,0.7274515]
[1758859015111,0.9483032,109650.0,109640.0,1.02389374]
[1758859015313,1.25835544,109650.0,109640.0,0.02258]
[1758859015509,1.25835544,109650.0,109640.0,0.38338]
[1758859016018,1.25835544,109650.0,109640.0,0.4884915]
[1758859016712,0.9483032,109650.0,109640.0,0.4884915]
[1758859016917,0.9483032,109650.0,109640.0,0.78493374]
[1758859017116,0.9483032,109650.0,109640.0,0.4884915]
[1758859018814,0.85712,109650.0,109640.0,0.87613716]
[1758859019520,0.9482632,109650.0,109640.0,0.57969492]
[1758859019718,0.9482632,109650.0,109640.0,0.78498566]
[1758859020416,0.9482632,109650.0,109640.0,0.87613716]
[1758859020619,0.9482632,109650.0,109640.0,0.57969492]
[1758859021217,0.9482632,109650.0,109640.0,0.81969492]
[1758859024821,0.9482632,109650.0,109640.0,0.72854342]
[1758859025022,0.9482632,109650.0,109640.0,0.81969492]
[1758859025218,0.9482632,109650.0,109640.0,1.11613716]
[1758859026025,0.9482632,109650.0,109640.0,0.81969492]
[1758859026221,0.9482632,109650.0,109640.0,1.11613716]
[1758859027724,0.9482632,109650.0,109640.0,1.02498566]
[1758859031416,1.24470544,109650.0,109640.0,0.72854342]
[1758859032126,0.9482632,109650.0,109640.0,0.72854342]
[1758859032327,0.9482632,109650.0,109640.0,1.02498566]
[1758859033127,0.9482632,109650.0,109640.0,0.72854342]
[1758859034328,0.9482632,109650.0,109640.0,1.02498566]
[1758859037338,0.9482632,109650.0,109640.0,0.72854342]
[1758859037532,0.9482632,109650.0,109640.0,1.02498566]
[1758859037836,0.9482632,109650.0,109640.0,0.72854342]
[1758859040436,1.24470544,109650.0,109640.0,0.72854342]
[1758859043145,0.9482632,109650.0,109640.0,0.72854342]
[1758859044248,1.24470544,109650.0,109640.0,0.36774342]
[1758859044447,1.25823544,109650.0,109640.0,0.36774342]
[1758859044749,1.95467768,109650.0,109640.0,0.24]
[1758859045551,1.65823544,109650.0,109640.0,0.26218]
[1758859046249,1.64470544,109650.0,109640.0,0.63581]
[1758859046442,0.5147432,109650.0,109640.0,1.02340374]
[1758859046642,0.9480632,109650.0,109640.0,1.02340374]
[1758859046940,0.9480632,109650.0,109640.0,0.7269615]
[1758859049350,0.9480632,109650.0,109640.0,0.63581]
[1758859049649,1.24450544,109650.0,109640.0,0.63581]
[1758859049842,0.9615932,109650.0,109640.0,0.63581]
[1758859050046,1.25803544,109650.0,109640.0,0.38298]
[1758859050753,1.65803544,109650.0,109640.0,0.38298]
[1758859052348,1.67627277,109650.0,109640.0,0.38298]
[1758859052551,0.1176115,109640.0,109630.0,0.63576]
[1758859052751,0.41405374,109640.0,109630.0,0.63576]
[1758859054151,0.41405374,109640.0,109630.0,0.64176]
[1758859054557,0.71070178,109640.0,109630.0,0.94030514]
[1758859054854,0.72691016,109640.0,109630.0,0.94030514]
[1758859055251,0.72691016,109640.0,109630.0,0.93830514]
[1758859055656,0.72691016,109640.0,109630.0,0.93230514]
[1758859056758,0.71070178,109640.0,109630.0,0.63576]
[1758859057058,0.71070178,109640.0,109630.0,0.93230514]
[1758859057759,0.71070178,109640.0,109630.0,0.69230514]
[1758859059061,0.71070178,109640.0,109630.0,0.39576]
[1758859059262,0.71070178,109640.0,109630.0,0.69230514]
[1758859059456,0.71070178,109640.0,109630.0,0.39576]
[1758859059662,0.71070178,109640.0,109630.0,0.38298]
[1758859063165,1.11070178,109640.0,109630.0,0.38298]
[1758859071067,0.5176115,109640.0,109630.0,0.38298]
[1758859071271,1.11070178,109640.0,109630.0,0.38298]
[1758859074183,0.5176115,109640.0,109630.0,0.38298]
[1758859074469,1.11070178,109640.0,109630.0,0.38298]
[1758859083075,0.80944664,109640.0,109630.0,0.78403494]
[1758859083477,0.18649245,109650.0,109640.0,0.0911515]
[1758859083782,1.31619759,109650.0,109640.0,0.78461664]
[1758859084985,1.33043234,109650.0,109640.0,0.39692]
[1758859085283,1.33043234,109650.0,109640.0,0.38357]
[1758859085284,1.33556234,109650.0,109640.0,0.38357]
[1758859085489,1.33656234,109650.0,109640.0,0.38357]
[1758859086285,1.34256234,109650.0,109640.0,0.38357]
[1758859097798,1.32319759,109650.0,109640.0,0.39653]
[1758859098004,1.32319759,109650.0,109640.0,0.78422664]
[1758859098404,1.32219759,109650.0,109640.0,0.78422664]
[1758859099205,1.32303759,109650.0,109640.0,0.78422664]
[1758859102107,1.32203759,109650.0,109640.0,0.78422664]
[1758859103808,1.31603759,109650.0,109640.0,0.78422664]
[1758859106312,1.01949245,109650.0,109640.0,0.78422664]
[1758859106505,1.31603759,109650.0,109640.0,0.78422664]
[1758859107707,0.1134383,109650.0,109640.0,1.48077178]
[1758859107908,0.83292,109650.0,109640.0,1.49548191]
[1758859109108,0.83292,109650.0,109640.0,1.49748191]
[1758859109504,0.83292,109650.0,109640.0,1.20093677]
[1758859110112,0.83292,109650.0,109640.0,1.20693677]
[1758859110313,0.9240632,109650.0,109640.0,1.20693677]
[1758859110513,1.22060834,109650.0,109640.0,1.19222664]
[1758859111313,0.9240632,109650.0,109640.0,1.20699858]
[1758859111511,1.22060834,109650.0,109640.0,1.20699858]
[1758859111817,1.22060834,109650.0,109640.0,1.20499858]
[1758859112010,1.24340834,109650.0,109640.0,0.91045344]
[1758859112217,0.85572,109650.0,109640.0,1.20699858]
[1758859112417,1.15226514,109650.0,109640.0,1.20699858]
[1758859112717,0.85572,109650.0,109640.0,1.50354372]
[1758859112908,0.1139349,109660.0,109650.0,0.1257632]
[1758859113105,0.0228,109670.0,109660.0,0.1257549]
[1758859113310,0.8328,109670.0,109660.0,0.4865549]
[1758859113519,0.8556,109670.0,109660.0,1.1708486]
[1758859114017,0.8328,109670.0,109660.0,1.1708486]
[1758859114225,0.8556,109670.0,109660.0,0.57775832]
[1758859114418,1.24327174,109670.0,109660.0,0.48662342]
[1758859114613,0.9527266,109670.0,109660.0,0.48662342]
[1758859114815,1.24909748,109670.0,109660.0,0.48662342]
[1758859115112,1.25009748,109670.0,109660.0,0.48662342]
[1758859115316,0.9537266,109670.0,109660.0,0.48662342]
[1758859115515,1.25009748,109670.0,109660.0,0.48662342]
[1758859116011,1.25009748,109670.0,109660.0,0.52582342]
[1758859116407,1.25009748,109670.0,109660.0,0.88662342]
[1758859116918,1.15297088,109670.0,109660.0,0.88662342]
[1758859117218,1.05197088,109670.0,109660.0,0.88662342]
[1758859117620,1.05197088,109670.0,109660.0,0.97775832]
[1758859117819,0.7556,109670.0,109660.0,0.97775832]
[1758859118019,1.05197088,109670.0,109660.0,0.97775832]
[1758859118924,0.7556,109670.0,109660.0,0.97775832]
[1758859119118,1.05197088,109670.0,109660.0,0.97775832]
[1758859119518,1.05197088,109670.0,109660.0,0.57775832]
[1758859120424,1.05197088,109670.0,109660.0,0.57975832]
[1758859120723,1.14309748,109670.0,109660.0,0.57975832]
[1758859120925,1.14309748,109670.0,109660.0,0.49462342]
[1758859122326,1.14309748,109670.0,109660.0,0.48862342]
[1758859122626,1.15644748,109670.0,109660.0,0.002]
[1758859122819,1.55644748,109670.0,109660.0,0.002]
[1758859123223,0.0911349,109660.0,109650.0,0.3608]
[1758859123429,0.42302578,109660.0,109650.0,0.38183]
[1758859125925,0.1266549,109660.0,109650.0,0.38183]
[1758859126125,0.1266549,109660.0,109650.0,0.39542]
[1758859126326,0.42302578,109660.0,109650.0,0.39542]
[1758859127027,0.4376255,109660.0,109650.0,0.39542]
[1758859127831,0.8376255,109660.0,109650.0,0.3608]
[1758859128031,0.1190732,109650.0,109640.0,0.38183]
[1758859128223,1.24804408,109650.0,109640.0,0.38183]
[1758859128530,1.24804408,109650.0,109640.0,0.47302511]
[1758859129131,1.94441496,109650.0,109640.0,0.3608]
[1758859129631,1.64804408,109650.0,109640.0,0.3608]
[1758859130731,1.64904408,109650.0,109640.0,0.3608]
[1758859131332,1.72053786,109650.0,109640.0,0.3608]
[1758859131531,1.72653786,109650.0,109640.0,0.3608]
[1758859131938,1.72653786,109650.0,109640.0,0.38183]
[1758859132232,1.72653786,109650.0,109640.0,0.3608]
[1758859134734,1.72653786,109650.0,109630.0,0.39554]
[1758859134735,0.1135215,109640.0,109630.0,0.39554]
[1758859134935,0.40989238,109640.0,109630.0,0.4866998]
[1758859137033,0.31874088,109640.0,109630.0,0.4866998]
[1758859137825,0.40989238,109640.0,109630.0,0.4866998]
[1758859140540,0.31874088,109640.0,109630.0,0.4866998]
[1758859141438,0.02237,109640.0,109630.0,0.4866998]
[1758859141638,0.31874088,109640.0,109630.0,0.4866998]
[1758859141838,0.40989238,109640.0,109630.0,0.4866998]
[1758859142840,0.40989238,109640.0,109630.0,0.4926998]
[1758859143441,0.40989238,109640.0,109630.0,0.4946998]
[1758859143841,0.40989238,109640.0,109630.0,0.4886998]
[1758859144243,0.40989238,109640.0,109630.0,0.4866998]
[1758859146635,1.24353238,109640.0,109630.0,0.4866998]
[1758859147142,1.24353238,109640.0,109630.0,0.4946998]
[1758859147438,1.15238088,109640.0,109630.0,0.4946998]
[1758859148940,1.15238088,109640.0,109630.0,0.4926998]
[1758859149440,1.15238088,109640.0,109630.0,0.4866998]
[1758859149942,1.15238088,109640.0,109630.0,0.4886998]
[1758859150242,1.15238088,109640.0,109630.0,0.4946998]
[1758859150435,1.24353238,109640.0,109630.0,0.4946998]
[1758859150630,1.25664238,109640.0,109630.0,0.4946998]
[1758859150940,1.25664238,109640.0,109630.0,0.4809898]
[1758859151837,1.24353238,109640.0,109630.0,0.4946098]
[1758859152234,1.24353238,109640.0,109630.0,0.4926098]
[1758859152738,1.25664238,109640.0,109630.0,0.38783]
[1758859152952,0.1276798,109630.0,109620.0,0.39637]
[1758859153142,0.1276798,109630.0,109620.0,0.46489319]
[1758859153143,0.42405068,109630.0,109620.0,0.46489319]
[1758859153344,0.42405068,109630.0,109620.0,0.38278]
[1758859153643,0.42405068,109630.0,109620.0,0.4739481]
[1758859155545,0.42405068,109630.0,109620.0,0.3608]
[1758859155844,0.1276798,109630.0,109620.0,0.38278]
[1758859156045,0.42405068,109630.0,109620.0,0.38278]
[1758859156544,0.42405068,109630.0,109620.0,0.4739481]
[1758859157246,0.42505068,109630.0,109620.0,0.4739481]
[1758859158748,0.42405068,109630.0,109620.0,0.4739481]
[1758859159451,0.42405068,109630.0,109620.0,0.3608]
[1758859159849,0.42405068,109630.0,109620.0,0.38278]
[1758859164851,0.42405068,109630.0,109620.0,0.4739481]
[1758859167251,0.42405068,109630.0,109620.0,0.38278]
[1758859167751,0.42405068,109630.0,109620.0,0.4739481]
[1758859167960,0.42405068,109630.0,109620.0,0.38278]
[1758859168955,0.42405068,109630.0,109620.0,0.4739481]
[1758859169757,0.42405068,109630.0,109620.0,0.4874181]
[1758859170455,0.42405068,109630.0,109620.0,0.4739481]
[1758859170856,0.42405068,109630.0,109620.0,0.4874181]
[1758859176565,0.42427257,109630.0,109620.0,0.78401087]
[1758859178462,0.1276798,109630.0,109620.0,0.78401087]
[1758859178658,0.42427257,109630.0,109620.0,0.78401087]
[1758859180664,0.41092257,109630.0,109620.0,0.78401087]
[1758859181563,0.41092257,109630.0,109620.0,0.86612406]
[1758859182368,0.31976277,109630.0,109620.0,0.86612406]
[1758859182663,0.40887927,109640.0,109630.0,0.1258897]
[1758859182854,1.24175927,109640.0,109630.0,0.42248247]
[1758859183665,0.9451665,109640.0,109630.0,0.42248247]
[1758859183965,1.24775927,109640.0,109630.0,0.42248247]
[1758859184159,1.24875927,109640.0,109630.0,0.42248247]
[1758859186567,1.24875927,109640.0,109630.0,0.1258897]
[1758859186867,1.54535204,109640.0,109630.0,0.42248247]
[1758859187065,1.54535204,109640.0,109630.0,0.03473]
[1758859187266,1.54535204,109640.0,109630.0,0.1258897]
[1758859189670,1.55846204,109640.0,109630.0,0.1124197]
[1758859189970,0.1122897,109630.0,109620.0,0.86539916]
[1758859190165,0.40888247,109630.0,109620.0,0.86539916]
[1758859190371,0.40888247,109630.0,109620.0,0.9566109]
[1758859190768,0.31772277,109630.0,109620.0,0.9566109]
[1758859191872,0.02113,109630.0,109620.0,0.9586109]
[1758859192372,0.31772277,109630.0,109620.0,0.9586109]
[1758859193368,0.31772277,109630.0,109620.0,0.9646109]
[1758859193773,0.31772277,109630.0,109620.0,0.48564319]
[1758859193774,0.42223247,109630.0,109620.0,0.48564319]
[1758859193968,0.42223247,109630.0,109620.0,0.494698]
[1758859194870,0.42223247,109630.0,109620.0,0.492698]
[1758859195374,0.42223247,109630.0,109620.0,0.486698]
[1758859195777,0.40888247,109630.0,109620.0,0.486698]
[1758859196276,0.1122897,109630.0,109620.0,0.486698]
[1758859196473,0.40888247,109630.0,109620.0,0.486698]
[1758859196874,0.40888247,109630.0,109620.0,0.78329077]
[1758859200287,0.40888247,109630.0,109620.0,0.486698]
[1758859200487,0.40888247,109630.0,109620.0,0.78329077]
[1758859200989,0.40888247,109630.0,109620.0,0.69212277]
[1758859201185,0.40888247,109630.0,109620.0,0.39553]
[1758859201377,0.42223247,109630.0,109620.0,0.39553]
[1758859201684,0.42223247,109630.0,109620.0,0.38206]
[1758859201884,0.40888247,109630.0,109620.0,0.4868981]
[1758859202187,0.40888247,109630.0,109620.0,0.78349087]
[1758859202188,0.31772277,109630.0,109620.0,0.78349087]
[1758859202388,0.40888247,109630.0,109620.0,0.78349087]
[1758859202585,0.40888247,109630.0,109620.0,0.4868981]
[1758859203989,0.40888247,109630.0,109620.0,0.4888981]
[1758859204688,0.40888247,109630.0,109620.0,0.78549087]
[1758859206092,0.1122897,109630.0,109620.0,0.78549087]
[1758859206290,0.40888247,109630.0,109620.0,0.78349087]
[1758859206489,0.40888247,109630.0,109620.0,0.86560406]
[1758859207190,0.02113,109630.0,109620.0,1.56219683]
[1758859207385,0.40892997,109640.0,109630.0,0.1273797]
[1758859207591,1.24172997,109640.0,109630.0,0.78477247]
[1758859208590,1.53832274,109640.0,109630.0,0.78477247]
[1758859209294,0.9451372,109640.0,109630.0,0.78477247]
[1758859209488,1.24172997,109640.0,109630.0,0.78477247]
[1758859210191,0.8328,109640.0,109630.0,1.3580974]
[1758859211191,0.09267378,109650.0,109640.0,0.1273714]
[1758859211490,1.22250655,109650.0,109640.0,0.78476417]
[1758859212087,1.22250655,109650.0,109640.0,0.4881714]
[1758859212287,1.31364965,109650.0,109640.0,0.39702]
[1758859212588,1.31877965,109650.0,109640.0,0.02258]
[1758859213687,1.24728587,109650.0,109640.0,0.02258]
[1758859214689,1.54387864,109650.0,109640.0,0.02258]
[1758859214995,1.24728587,109650.0,109640.0,0.02258]
[1758859215397,0.1123314,109640.0,109630.0,0.39702]
[1758859215598,0.71862694,109640.0,109630.0,0.39702]
[1758859215797,0.70551694,109640.0,109630.0,0.48822342]
[1758859216098,0.71862694,109640.0,109630.0,0.02258]
[1758859216595,0.1123398,109630.0,109620.0,0.488218]
[1758859216897,1.24297257,109630.0,109620.0,0.488218]
[1758859217293,0.85522,109630.0,109620.0,0.488218]
[1758859217494,1.15181277,109630.0,109620.0,0.488218]
[1758859218096,1.15181277,109630.0,109620.0,0.78481077]
[1758859218401,0.9463797,109630.0,109620.0,0.78481077]
[1758859218596,1.24297247,109630.0,109620.0,0.78481077]
[1758859219998,1.24297247,109630.0,109620.0,0.78681077]
[1758859220200,1.24297247,109630.0,109620.0,0.79281077]
[1758859220498,1.15181277,109630.0,109620.0,0.79281077]
[1758859222300,0.85522,109630.0,109620.0,1.5806236]
[1758859222503,0.83404,109630.0,109620.0,1.5806236]
[1758859223199,1.15181277,109630.0,109620.0,0.98743806]
[1758859223604,1.15181277,109630.0,109620.0,1.28403083]
[1758859224804,1.15181277,109630.0,109620.0,1.27803083]
[1758859225002,1.15181277,109630.0,109620.0,1.28403083]
[1758859225302,0.85522,109630.0,109620.0,1.28403083]
[1758859225503,1.15181277,109630.0,109620.0,1.28403083]
[1758859225907,1.15181277,109630.0,109620.0,1.36614402]
[1758859226105,0.85522,109630.0,109620.0,1.36614402]
[1758859226406,1.15181277,109630.0,109620.0,1.36614402]
[1758859227207,1.15181277,109630.0,109620.0,1.36414402]
[1758859227507,1.15181277,109630.0,109620.0,1.66273679]
[1758859227907,1.15181277,109630.0,109620.0,1.06955125]
[1758859228108,1.15181277,109630.0,109620.0,1.66273679]
[1758859228705,0.83404,109630.0,109620.0,1.66273679]
[1758859230110,0.31963277,109640.0,109630.0,0.1272598]
[1758859230410,1.24494417,109640.0,109630.0,0.78465257]
[1758859230705,1.24494417,109640.0,109630.0,0.0361]
[1758859230706,1.54153694,109640.0,109630.0,0.0361]
[1758859230907,0.03639,109630.0,109620.0,0.09011319]
[1758859231111,1.41732811,109630.0,109620.0,0.008]
[1758859231406,0.02304,109600.0,109590.0,0.0361]
[1758859231605,1.54798024,109600.0,109590.0,0.02243]
[1758859231806,1.54798024,109600.0,109590.0,0.11364174]
[1758859232006,1.54798024,109600.0,109590.0,0.02243]
[1758859232203,1.54798024,109600.0,109590.0,0.0361]
[1758859232510,0.9496647,109600.0,109590.0,0.3969]
[1758859232702,1.54285024,109600.0,109590.0,0.3969]
[1758859233307,1.15507277,109600.0,109590.0,0.69349277]
[1758859233510,0.02304,109600.0,109590.0,0.8759308]
[1758859233709,0.8374,109600.0,109590.0,0.8759308]
[1758859233905,0.8424,109600.0,109590.0,0.8759308]
[1758859234513,0.8424,109600.0,109590.0,1.2759308]
[1758859234807,0.8424,109600.0,109590.0,1.57252357]
[1758859235112,0.8424,109600.0,109590.0,1.2759308]
[1758859237311,0.8424,109600.0,109590.0,1.57252357]
[1758859237509,0.8424,109600.0,109590.0,1.2759308]
[1758859237710,0.7424,109600.0,109590.0,0.97933803]
[1758859237910,0.7424,109600.0,109590.0,1.2759308]
[1758859238511,0.7424,109600.0,109590.0,1.27600997]
[1758859239516,0.005,109600.0,109590.0,0.87600997]
[1758859240012,0.02804,109600.0,109590.0,0.87600997]
[1758859240219,0.005,109600.0,109590.0,0.87600997]
[1758859240619,0.02804,109600.0,109590.0,0.87600997]
[1758859240916,0.1192247,109600.0,109590.0,0.87600997]
[1758859241214,0.81589664,109600.0,109590.0,0.3969]
[1758859241417,0.82102664,109600.0,109590.0,0.3969]
[1758859241611,0.5192247,109600.0,109590.0,0.38323]
[1758859241814,0.1192247,109600.0,109590.0,0.69357194]
[1758859242016,0.9581847,109600.0,109590.0,0.69357194]
[1758859242320,0.9581847,109600.0,109590.0,0.3969]
[1758859242515,1.25485664,109600.0,109590.0,0.3969]
[1758859242721,1.25998664,109600.0,109590.0,0.02243]
[1758859243014,0.114233,109590.0,109580.0,0.3969]
[1758859243218,0.41090494,109590.0,109580.0,0.3969]
[1758859243520,0.114233,109590.0,109580.0,0.48814503]
[1758859244222,0.114233,109590.0,109580.0,0.87801827]
[1758859244223,0.02304,109590.0,109580.0,0.87801827]
[1758859244921,0.02304,109590.0,109580.0,0.58134633]
[1758859245218,0.02304,109590.0,109580.0,0.87901827]
[1758859246409,0.41090494,109590.0,109580.0,0.3989]
[1758859246607,0.41090494,109590.0,109580.0,0.4891014]
[1758859246820,0.114233,109590.0,109580.0,0.4891014]
[1758859247619,0.114233,109590.0,109580.0,0.4911014]
[1758859247819,0.02304,109590.0,109580.0,0.4911014]
[1758859248016,0.02304,109590.0,109580.0,0.78777334]
[1758859248221,0.1142288,109600.0,109590.0,0.0361]
[1758859248525,0.9533088,109600.0,109590.0,0.78476494]
[1758859248724,0.86232,109600.0,109590.0,0.78476494]
[1758859249816,0.86732,109600.0,109590.0,0.78476494]
[1758859250522,0.86716,109600.0,109590.0,0.78476494]
[1758859250722,0.86716,109600.0,109590.0,0.78676494]
[1758859250923,0.9583447,109600.0,109590.0,0.78676494]
[1758859251226,0.86716,109600.0,109590.0,0.78676494]
[1758859251517,0.86716,109600.0,109590.0,0.78476494]
[1758859251823,0.86216,109600.0,109590.0,0.78576494]
[1758859252624,0.86216,109600.0,109590.0,0.87700997]
[1758859252924,0.83912,109600.0,109590.0,0.87700997]
[1758859253126,0.83912,109600.0,109590.0,0.87900997]
[1758859253623,0.83912,109600.0,109590.0,1.27900997]
[1758859253824,0.83912,109600.0,109590.0,0.98233803]
[1758859254021,0.86216,109600.0,109590.0,0.98233803]
[1758859254414,0.9533447,109600.0,109590.0,0.58233803]
[1758859255326,0.9533447,109600.0,109590.0,0.49114503]
[1758859255727,0.9533447,109600.0,109590.0,0.58233803]